[Event "New York Spring IM-C 2022"]
[Site "New York"]
[Date "2022.04.19"]
[Round "9.2"]
[White "Jakovljevic, Vlado"]
[Black "Dolgitser, Konstantin"]
[Result "1-0"]
[ECO "D47"]
[WhiteElo "2352"]
[BlackElo "2199"]
[Annotator "TA"]
[PlyCount "39"]
[EventDate "2022.04.14"]
[EventType "tourn"]
[EventCountry "USA"]
[SourceTitle "playchess.com"]
[Source "ChessBase"]
[SourceQuality "1"]
[TimeControl "5400+30"]

{[%evp 21,39,-15,26,32,32,40,23,27,107,102,191,156,212,221,471,475,484,479,29973,565]} 1. Nf3 {[%emt 0:04:35]} d5 {[%emt 0:00:09]} 2. d4 {[%emt 0:00:06]} Nf6 {[%emt 0:00:13]} 3. c4 {[%emt 0:00:06]} c6 {[%emt 0:00:24]} 4. Nc3 {[%emt 0:00:09]} e6 {[%emt 0:00:20]} 5. e3 {[%emt 0:00:13]} Nbd7 {[%emt 0:00:20]} 6. Bd3 {[%emt 0:00:25]} dxc4 {[%emt 0:00:16]} 7. Bxc4 {[%emt 0:00:06]} b5 {[%emt 0:00:06]} 8. Bd3 {[%emt 0:00:04]} Bd6 {[%emt 0:02:12]} 9. O-O {[%emt 0:00:11]} O-O {[%emt 0:00:06]} 10. e4 {[%emt 0:05:01]} e5 {[%emt 0:00:49]} 11. Bg5 {[%emt 0:00:41]} Bb7 {[%emt 0:08:54]} 12. dxe5 {[%emt 0:19:07] D47: Semi-Slav: Meran System.} Nxe5 {[%emt 0:01:43]} 13. Nxe5 {[%emt 0:00:17]} Bxe5 {[%emt 0:00:10]} 14. f4 {[%emt 0:00:02] White has an edge.} Bd4+ {[%emt 0:19:24]} (14... Bxc3 $11 {remains equal.} 15. bxc3 h6) 15. Kh1 $16 {[%emt 0:00:09] [#] Strongly threatening e5.} Qd7 {[%emt 0:01:44] [#]} (15... h6 $16) 16. e5 $146 {[%emt 0:15:07]} ({Predecessor:} 16. Bxf6 Bxf6 17. e5 Be7 18. Bxh7+ {1-0 (18) Truman,R (1916)-Staniforth,M (1940) Ascot 2013}) 16... Ng4 {[%emt 0:10:27]} (16... Nd5 $16 {might work better.}) 17. e6 {[%emt 0:00:42]} fxe6 {[%emt 0:03:23]} (17... Qxe6 18. f5 (18. Bxh7+ Kxh7 19. f5 Qd7 $11) 18... Qd7) 18. Qxg4 $18 {[%emt 0:00:45]} Bxc3 {[%emt 0:00:05]} 19. Qh3 {[%emt 0:01:11]} ({Not} 19. bxc3 Qxd3 20. Qxe6+ Rf7 $11) 19... Bf6 {[%emt 0:14:54]} (19... g6 $18 20. bxc3 c5) 20. Qxh7+ {[%emt 0:00:13] Black did not feel at home in the position after the opening.  Weighted Error Value: White=0.05 (flawless) /Black=1.55} 1-0

[Event "New York Spring IM-C 2022"]
[Site "New York"]
[Date "2022.04.19"]
[Round "9.3"]
[White "Umayan, Vincent"]
[Black "Chasin, Nico"]
[Result "0-1"]
[ECO "B40"]
[WhiteElo "2043"]
[BlackElo "2270"]
[Annotator "TA"]
[PlyCount "94"]
[EventDate "2022.04.14"]
[EventType "tourn"]
[EventCountry "USA"]
[SourceTitle "playchess.com"]
[Source "ChessBase"]
[SourceQuality "1"]
[TimeControl "5400+30"]

{[%evp 9,94,106,79,35,35,33,33,33,43,45,51,5,4,11,3,0,50,52,52,45,58,51,66,18,59,12,52,54,60,50,75,66,68,26,18,26,64,48,60,52,81,47,50,24,48,2,11,13,5,10,62,52,108,42,43,25,27,7,6,0,0,0,0,0,0,0,0,0,0,-10,0,-56,-56,-109,-114,-170,-179,-179,-168,-156,-111,-615,0,-616,-566,-719,-697]} 1. e4 {[%emt 0:00:30]} c5 {[%emt 0:08:52]} 2. Nf3 {[%emt 0:00:15]} e6 {[%emt 0:00:06]} 3. d4 {[%emt 0:00:37]} cxd4 {[%emt 0:00:05]} 4. Nxd4 {[%emt 0:00:05]} Qc7 {[%emt 0:00:06]} 5. Nb5 {[%emt 0:15:17]} Qc6 {[%emt 0:03:14]} 6. Be3 {[%emt 0:05:33] B40: Sicilian: 2...e6, Unusual lines.} a6 {[%emt 0:02:05]} 7. Na7 {[%emt 0:01:17]} Qc7 {[%emt 0:02:03]} 8. Nxc8 {[%emt 0:06:02] White is slightly better.} Qxc8 {[%emt 0:00:06]} 9. Nd2 {[%emt 0:03:55]} Qc7 {[%emt 0:05:50] [#]} 10. Be2 $146 {[%emt 0:04:55]} (10. f4 $14 {might be stronger.}) ({Predecessor:} 10. Bd3 Nf6 11. Qe2 Nc6 12. c3 d5 13. O-O Be7 14. Rad1 Rd8 15. f4 d4 16. e5 dxe3 17. exf6 Bxf6 18. Qxe3 {½-½ (41) Toropov,M (2345)-Jung,B (2380) ICCF email 2010}) 10... Bc5 $11 {[%emt 0:01:07]} 11. Bxc5 {[%emt 0:04:50]} Qxc5 {[%emt 0:02:19]} 12. Nc4 {[%emt 0:05:43]} Nc6 {[%emt 0:08:03]} (12... Nf6 $11) 13. Qd6 $36 {[%emt 0:06:56][%mdl 2048] White has good play.} Qxd6 {[%emt 0:00:58]} 14. Nxd6+ {[%emt 0:00:01]} Ke7 {[%emt 0:00:13]} 15. O-O-O {[%emt 0:06:41]} (15. Nxb7 Nf6 $11) 15... Nf6 {[%emt 0:05:02]} 16. Rd2 {[%emt 0:02:46]} (16. f4 $14) 16... Rab8 {[%emt 0:01:54]} 17. Rhd1 {[%emt 0:00:43]} (17. f4 $14) 17... Rhd8 {[%emt 0:00:02]} 18. f4 {[%emt 0:03:27]} Ne8 {[%emt 0:01:29][%cal Bf6e8,Be8c7,Bc7b5,Bb5d4,Bd4f5][%mdl 32]} 19. e5 {[%emt 0:00:47]} f6 {[%emt 0:01:56]} 20. exf6+ {[%emt 0:03:48]} gxf6 {[%emt 0:02:22]} 21. Ne4 {[%emt 0:05:17][%cal Of4f5]} d5 {[%emt 0:04:01]} 22. Nc5 {[%emt 0:03:08]} Nc7 {[%emt 0:00:37]} 23. Rd3 {[%emt 0:00:29]} b6 {[%emt 0:00:56]} 24. Nb3 {[%emt 0:00:43]} Rg8 {[%emt 0:02:51]} 25. Bf3 {[%emt 0:03:33]} Rbd8 {[%emt 0:01:24]} 26. Rc3 {[%emt 0:06:27]} Kd6 {[%emt 0:01:44]} 27. Nd2 {[%emt 0:01:46]} (27. a3 $14) 27... Nb5 $11 {[%emt 0:00:51]} 28. Re3 {[%emt 0:03:44]} (28. Ne4+ Kc7 29. Rxc6+ Kxc6 30. Nxf6 Rgf8 $17) 28... Nbd4 {[%emt 0:00:28]} 29. g3 {[%emt 0:00:30]} b5 {[%emt 0:05:57]} (29... Nxf3 $11 30. Rxf3 (30. Nxf3 e5 $11) 30... Ke7) 30. Bg2 $14 {[%emt 0:01:07]} Rge8 {[%emt 0:00:59]} ({Black should try} 30... Nf5 $14 31. Ree1 Ke7) 31. c3 {[%emt 0:00:29]} (31. g4 $16) 31... Nf5 {[%emt 0:00:01]} 32. Rd3 {[%emt 0:00:26]} Kc7 {[%emt 0:00:09]} 33. Bh3 {[%emt 0:01:21]} Nd6 {[%emt 0:00:12]} 34. f5 {[%emt 0:01:13]} Ne5 {[%emt 0:00:31][%cal Bc6e5,Be5g4,Bg4e3,Be3g2,Bg2e3,Be3c2,Bc2e1][%mdl 32]} ({Don't take} 34... exf5 35. Rxd5 Re2 36. Nf3 $14) 35. Rd4 {[%emt 0:00:18]} Nxf5 {[%emt 0:00:45]} 36. Bxf5 {[%emt 0:00:14]} exf5 {[%emt 0:00:02]} 37. Rf1 {[%emt 0:00:21]} Ng4 {[%emt 0:00:25]} 38. h3 {[%emt 0:01:25]} ({Don't blunder} 38. Rxf5 $2 Re1+ 39. Kc2 Ne3+ 40. Kb3 Nxf5 $19) 38... Ne3 {[%emt 0:00:59]} 39. Rf3 {[%emt 0:01:44]} Re5 {[%emt 0:00:02]} 40. Rd3 {[%emt 0:00:49]} ({White should play} 40. Nb3 $11) 40... Rde8 $15 {[%emt 0:01:27]} 41. b3 {[%emt 0:00:46]} (41. Rd4 $15) 41... Ng2 $17 {[%emt 0:00:01] [#] Hoping for ...Ne1.} 42. Rf2 {[%emt 0:00:31]} (42. Rf1 $17) 42... Re1+ $19 {[%emt 0:00:27]} 43. Kb2 {[%emt 0:00:17]} Ne3 {[%emt 0:00:36] Threatens to win with ...Nd1+.} 44. Ka3 {[%emt 0:00:20]} Rd1 {[%emt 0:00:39] &Nero is more active.} 45. Rf3 $2 {[%emt 0:00:31][%mdl 8192] [#]} (45. Kb2 $17) 45... Nc2+ $1 {[%emt 0:00:02]} 46. Kb2 {[%emt 0:00:18]} Ne1 {[%emt 0:00:02][%csl LRd3,LRf3]} 47. Rde3 {[%emt 0:01:26] Against Re2} Rxd2+ {[%emt 0:40:00] Weighted Error Value: White=0.39/Black=0.12 (very precise)} 0-1

[Event "New York Spring IM-C 2022"]
[Site "New York"]
[Date "2022.04.19"]
[Round "9.4"]
[White "Ngo, Bach"]
[Black "Rozman, Levy"]
[Result "1-0"]
[ECO "E11"]
[WhiteElo "2306"]
[BlackElo "2334"]
[Annotator "TA"]
[PlyCount "73"]
[EventDate "2022.04.14"]
[EventType "tourn"]
[EventCountry "USA"]
[SourceTitle "playchess.com"]
[Source "ChessBase"]
[SourceQuality "1"]
[TimeControl "5400+30"]

{[%evp 10,73,18,17,28,24,20,7,17,21,15,-40,-35,-56,-58,-83,-81,-88,-80,-88,-74,-98,0,-88,-67,-122,0,-104,-115,-130,-126,-162,-134,-192,-6,-15,-22,-47,-47,-34,-26,-19,0,-74,23,30,34,24,37,31,98,90,88,82,135,144,140,155,239,226,244,243,243,62,270,267]} 1. d4 {[%emt 0:01:24]} Nf6 {[%emt 0:00:11]} 2. Nf3 {[%emt 0:00:14]} e6 {[%emt 0:00:48]} 3. c4 {[%emt 0:00:32]} Bb4+ {[%emt 0:00:23]} 4. Bd2 {[%emt 0:00:26]} Qe7 {[%emt 0:00:24]} 5. g3 {[%emt 0:00:59]} Bxd2+ {[%emt 0:00:28]} 6. Qxd2 {[%emt 0:02:30]} Nc6 {[%emt 0:00:15] E11: Bogo-Indian.} 7. Nc3 {[%emt 0:01:26]} d5 {[%emt 0:01:58]} 8. Bg2 {[%emt 0:17:25]} dxc4 {[%emt 0:02:38] The position is equal.} 9. O-O {[%emt 0:00:15]} O-O {[%emt 0:00:21]} 10. e4 {[%emt 0:02:32]} (10. Ne5 $11) 10... Rd8 {[%emt 0:04:46]} 11. Rad1 {[%emt 0:06:52]} Rb8 {[%emt 0:14:16] [#]} 12. Qe3 $146 {[%emt 0:09:21]} ({Predecessor:} 12. a4 a6 13. Rfe1 Nb4 14. Bf1 b5 15. Qf4 Nd3 16. Bxd3 cxd3 17. Rxd3 b4 18. Nb1 {0-1 (50) Pogosyan,S (2459)-Tregubov,P (2588) Moscow 2019}) 12... b5 {[%emt 0:04:57]} 13. Rfe1 {[%emt 0:01:03]} Nb4 {[%emt 0:07:43]} 14. Re2 {[%emt 0:02:50] Against Nc2} Ng4 {[%emt 0:10:13]} 15. Qd2 {[%emt 0:10:15]} Nf6 {[%emt 0:09:28]} (15... Nd3 $17 {Strongly threatening ...c5.} 16. h3 Nf6) 16. Ne5 {[%emt 0:02:33]} (16. Qe3 $1 $11 {keeps the balance.}) 16... Nd7 $17 {[%emt 0:02:03]} 17. Nf3 {[%emt 0:02:38]} (17. Nxd7 $15 Qxd7 18. d5) 17... Nf6 {[%emt 0:02:06]} (17... Nd3 $17 {And now ...c5 would win.} 18. b3 Ba6) 18. Qg5 {[%emt 0:08:00] Against c5} (18. Qe3 $11 {remains equal.}) 18... h6 {[%emt 0:03:44]} 19. Qh4 {[%emt 0:00:17]} Qf8 {[%emt 0:06:24]} 20. g4 {[%emt 0:03:56]} Nd3 {[%emt 0:07:34]} 21. g5 {[%emt 0:01:20]} Nh7 {[%emt 0:04:58]} (21... hxg5 $19 22. Nxg5 Rxd4) 22. gxh6 $11 {[%emt 0:02:06]} gxh6 {[%emt 0:00:02]} 23. Qg3+ {[%emt 0:05:09]} Qg7 {[%emt 0:03:26]} 24. Qxc7 {[%emt 0:00:41]} Bd7 {[%emt 0:00:04] [#] ...b4 is the strong threat.} 25. Re3 $1 {[%emt 0:05:16]} Rbc8 {[%emt 0:01:21]} 26. Qa5 {[%emt 0:01:12]} (26. Qxa7 $11 Ra8 27. Qb6) 26... b4 {[%emt 0:01:19]} (26... Nf4 27. Ne1 $11) (26... Nxb2 $17 27. Rb1 Nd3) 27. Ne2 $1 {[%emt 0:02:04]} Nxb2 {[%emt 0:01:41]} 28. Rb1 {[%emt 0:00:10]} Nd3 {[%emt 0:02:11]} 29. Ne1 $1 {[%emt 0:00:14] [#] Threatens to win with Rg3.} Kh8 {[%emt 0:03:38]} ({Black should try} 29... Ng5 $1 $14) 30. Nxd3 $16 {[%emt 0:00:23]} cxd3 {[%emt 0:00:07]} 31. Rxd3 {[%emt 0:00:24]} (31. Rg3 Ng5 32. Nc1 Qxd4 $17) 31... Rg8 {[%emt 0:00:33]} ({Black should play} 31... Qg5 32. d5 exd5) 32. Rg3 {[%emt 0:00:12]} Qf6 {[%emt 0:00:19]} 33. Qxb4 {[%emt 0:00:39]} ({Don't do} 33. e5 Qf5 34. Qxb4 Ng5 $14) 33... Ng5 {[%emt 0:00:31]} (33... a6 $16) 34. Qd2 $18 {[%emt 0:03:25]} Bc6 {[%emt 0:00:58]} 35. Qe3 {[%emt 0:00:23]} Ba8 {[%emt 0:04:11]} 36. Nf4 $2 {[%emt 0:01:25]} (36. Rb5 $18) 36... Rc4 $2 {[%emt 0:00:43]} (36... Bxe4 $1 $14 37. Rb4 (37. Bxe4 Qxf4 38. Qxf4 Nh3+ 39. Kg2 Nxf4+ 40. Kf3 Nh5 $11) 37... Bxg2 38. Kxg2 Qf5) 37. h4 {[%emt 0:00:53] Quite a comeback for White.  Weighted Error Value: White=0.27 (precise) /Black=0.39} 1-0

[Event "New York Spring IM-C 2022"]
[Site "New York"]
[Date "2022.04.19"]
[Round "9.5"]
[White "Singh, Hersh"]
[Black "Berczes, David"]
[Result "0-1"]
[ECO "A50"]
[WhiteElo "2084"]
[BlackElo "2452"]
[Annotator "TA"]
[PlyCount "70"]
[EventDate "2022.04.14"]
[EventType "tourn"]
[EventCountry "USA"]
[SourceTitle "playchess.com"]
[Source "ChessBase"]
[SourceQuality "1"]
[TimeControl "5400+30"]

{[%evp 15,70,10,23,2,15,6,8,11,24,23,19,20,22,16,29,31,52,0,17,0,42,-22,-13,-15,-8,-15,-8,-10,-10,-8,-9,-22,-10,-17,-10,-13,-7,-47,-33,-154,-158,-154,-154,-539,-538,-752,-747,-737,-732,-1382,-880,-29978,-29980,-29979,-29980,-29986,-29987]} 1. Nf3 {[%emt 0:00:01]} Nf6 {[%emt 0:02:56]} 2. g3 {[%emt 0:00:13]} b6 {[%emt 0:04:49]} 3. Bg2 {[%emt 0:00:08]} Bb7 {[%emt 0:00:04]} 4. O-O {[%emt 0:00:24]} g6 {[%emt 0:00:37]} 5. c4 {[%emt 0:00:54]} Bg7 {[%emt 0:00:43]} 6. d4 {[%emt 0:00:21]} O-O {[%emt 0:00:30]} 7. Nc3 {7.Re1 is the recent fashion.} Ne4 {[%emt 0:05:18]} 8. Nxe4 {[%emt 0:03:36]} Bxe4 {[%emt 0:00:04]} 9. Bf4 {[%emt 0:03:24] A50: Queen's Fianchetto Defence (1 d4 Nf6 2 c4 b6).} d6 {[%emt 0:07:08]} 10. Qd2 {[%emt 0:00:58]} Nd7 {[%emt 0:07:01]} 11. Bh6 {[%emt 0:00:41] The position is equal.} c5 {[%emt 0:00:31]} 12. Bxg7 {[%emt 0:00:11]} Kxg7 {[%emt 0:00:04]} 13. Ne1 {[%emt 0:02:15]} Bxg2 {[%emt 0:00:21]} 14. Nxg2 {[%emt 0:00:55] [#]} Rc8 $146 {[%emt 0:00:43]} ({Predecessor:} 14... Nf6 15. b3 d5 16. dxc5 dxc4 17. Qc3 cxb3 18. axb3 bxc5 19. Qxc5 Qb6 20. b4 Rfb8 21. Qxe7 {½-½ (51) Petr,M (2542)-Naroditsky,D (2559) Teplice 2014}) 15. d5 {[%emt 0:01:34]} Nf6 {[%emt 0:03:14]} 16. a4 {[%emt 0:01:51]} (16. f3 $14) 16... Qd7 {[%emt 0:07:42]} 17. Qd3 {[%emt 0:03:57]} h5 {[%emt 0:14:56]} 18. a5 {[%emt 0:07:17]} (18. e4 $14) 18... Rb8 {[%emt 0:04:29]} 19. axb6 {[%emt 0:00:51]} Rxb6 {[%emt 0:06:04]} 20. b3 {[%emt 0:01:29]} Rfb8 {[%emt 0:07:32]} 21. Ra3 {[%emt 0:00:02]} Qb7 {[%emt 0:11:17][%cal Rb6b3]} 22. Rb1 {[%emt 0:00:29]} Ra6 {[%emt 0:04:24]} 23. Rba1 {[%emt 0:01:43]} Rxa3 {[%emt 0:00:28]} 24. Rxa3 {[%emt 0:00:02]} Qb4 $36 {[%emt 0:05:40][%mdl 2048] Prevents Qc3. Black has the initiative.} 25. Rxa7 {[%emt 0:00:12]} Ng4 {[%emt 0:01:36]} 26. h3 {[%emt 0:09:34]} ({Don't go for} 26. Rxe7 $2 Ra8 27. Qb1 Qc3 $19) (26. f3 $5 {[%cal Rf3g4]} Ne5 27. Qe3 $11) 26... Ne5 {[%emt 0:00:13][%cal Bg4e5,Be5c4,Bc4d2][%mdl 32]} 27. Qe4 {[%emt 0:00:05]} (27. Qd1 $15 Qxb3 28. Qxb3 Rxb3 29. Rxe7) 27... Qxb3 $17 {[%emt 0:01:12]} 28. Ne3 {[%emt 0:01:03] Against Qd1+} Qc3 {[%emt 0:00:48] [#] Strongly threatening ...Qe1+.} 29. Nf1 $2 {[%emt 0:20:19] Now White is beyond hope.} (29. Kg2 $17 {nothing else works.}) 29... Qe1 $19 {[%emt 0:01:23] Hoping for ...Rb1.} 30. Ra2 {[%emt 0:05:10]} Rb1 {[%emt 0:00:27]} 31. Qg2 {[%emt 0:00:01]} Nxc4 {[%emt 0:00:44] And now ...Nd2 would win.} 32. g4 {[%emt 0:00:22]} h4 {[%emt 0:00:26] [#] White must now prevent ...Nd2.} 33. g5 {[%emt 0:00:20]} Nd2 {[%emt 0:02:45] Black mates.} 34. Rxd2 {[%emt 0:00:46]} Qxd2 {[%emt 0:00:01]} 35. Qe4 {[%emt 0:00:02]} Qxg5+ {[%emt 0:00:26] Weighted Error Value: White=0.85/Black=0.20 (precise)} 0-1